fUSD/lending_fUSD_20260106
["ID","MTS","AMOUNT","RATE_DAILY","PERIOD"]
[400602387,1767739853897,-242.15909246,0.0004246,2]
[400602388,1767739853906,-600.0,0.00042466,120]
[400602389,1767739853915,-843.90936496,0.00042466,30]
[400602390,1767739853925,-162.0,0.00042482,16]
[400602391,1767739853935,-833.0,0.00042482,16]
[400602392,1767739853945,-833.0,0.00042482,16]
[400602393,1767739853955,-162.0,0.00042482,16]
[400602394,1767739853965,-160.0,0.000425,44]
[400602395,1767739853976,-160.0,0.000425,44]
[400602396,1767739853986,-160.0,0.000425,44]
[400602397,1767739853995,-160.0,0.000425,44]
[400602398,1767739854005,-500.0,0.000425,60]
[400602399,1767739854015,-321.16844661,0.000425,60]
[400602400,1767739854024,-500.0,0.000425,30]
[400602401,1767739854034,-276.2,0.000425,44]
[400602402,1767739854046,-500.0,0.000425,60]
[400602403,1767739854056,-911.64,0.00042504,120]
[400602404,1767739854066,-833.0,0.00042504,16]
[400602405,1767739854076,-6331.12699308,0.00042509,14]
[400602406,1767739854086,-6331.12699299,0.00042509,14]
[400602407,1767739854096,-6331.12699299,0.00042509,14]
[400602408,1767739854105,-6331.12699299,0.00042509,14]
[400602409,1767739854115,-6331.12699299,0.00042509,14]
[400602410,1767739854124,-6331.12699299,0.00042509,14]
[400602411,1767739854134,-6331.12699299,0.00042509,14]
[400602412,1767739854144,-6331.12699299,0.00042509,14]
[400602413,1767739854154,-6331.12699299,0.00042509,14]
[400602414,1767739854163,-6331.12699299,0.00042509,14]
[400602415,1767739854173,-6331.12699299,0.00042509,14]
[400602416,1767739854183,-6331.12699299,0.00042509,14]
[400602417,1767739854193,-6331.12699299,0.00042509,14]
[400602418,1767739854202,-6331.12699299,0.00042509,14]
[400602419,1767739854211,-162.0,0.00042512,16]
[400602420,1767739854222,-833.0,0.00042518,16]
[400602421,1767739854232,-833.0,0.00042524,16]
[400602422,1767739854241,-162.0,0.00042526,16]
[400602423,1767739854251,-162.0,0.00042527,16]
[400602424,1767739854260,-482.51,0.00042548,30]
[400602425,1767739854269,-661.18,0.00042548,30]
[400602426,1767739854279,-661.18,0.00042548,30]
[400602427,1767739854289,-482.51,0.00042548,30]
[400602428,1767739854300,-661.18,0.00042548,30]
[400602429,1767739854309,-661.18,0.00042548,30]
[400602430,1767739854319,-661.18,0.00042548,30]
[400602431,1767739854329,-153.0,0.00042555,120]
[400602432,1767739854339,-2362.0,0.00042573,30]
[400602433,1767739854349,-152.0,0.000426,120]
[400602434,1767739854358,-500.0,0.0004263,90]
[400602435,1767739854368,-500.0,0.0004263,90]
[400602436,1767739854377,-500.0,0.0004263,90]
[400602437,1767739854387,-500.0,0.0004263,90]
[400602438,1767739854396,-843.90936496,0.0004263,30]
[400602439,1767739854406,-153.0,0.00042655,120]
[400602440,1767739854416,-152.0,0.00042662,4]
[400602441,1767739854426,-2298.96,0.00042685,30]
[400602442,1767739854435,-150.0,0.00042685,30]
[400602443,1767739854445,-150.0,0.00042685,30]
[400602444,1767739854455,-171.25,0.00042685,30]
[400602445,1767739854464,-178.99,0.00042685,30]
[400602446,1767739854473,-466.43,0.00042685,30]
[400602447,1767739854483,-155.79,0.00042685,30]
[400602448,1767739854493,-555.93,0.00042685,30]
[400602449,1767739854503,-155.21,0.00042685,30]
[400602450,1767739854512,-150.0,0.00042685,30]
[400602451,1767739854521,-466.43,0.00042685,30]
[400602452,1767739854531,-150.0,0.00042685,30]
[400602453,1767739854540,-171.25,0.00042685,30]
[400602454,1767739854550,-150.0,0.00042685,30]
[400602455,1767739854559,-555.93,0.00042685,30]
[400602456,1767739854569,-150.0,0.00042685,30]
[400602457,1767739854579,-178.99,0.00042685,30]
[400602458,1767739854590,-555.93,0.00042685,30]
[400602459,1767739854602,-150.0,0.00042685,30]
[400602460,1767739854612,-150.0,0.00042685,30]
[400602461,1767739854624,-178.99,0.00042685,30]
[400602462,1767739854633,-150.0,0.00042685,30]
[400602463,1767739854643,-150.0,0.00042685,30]
[400602464,1767739854652,-150.0,0.00042685,30]
[400602465,1767739854661,-171.25,0.00042685,30]
[400602466,1767739854671,-178.99,0.00042685,30]
[400602467,1767739854682,-150.0,0.00042685,30]
[400602468,1767739854691,-171.25,0.00042685,30]
[400602469,1767739854701,-150.0,0.00042685,30]
[400602470,1767739854710,-555.93,0.00042685,30]
[400602471,1767739854719,-150.0,0.00042685,30]
[400602472,1767739854729,-150.0,0.00042685,30]
[400602473,1767739854738,-178.99,0.00042685,30]
[400602474,1767739854748,-171.25,0.00042685,30]
[400602475,1767739854757,-150.0,0.00042685,30]
[400602476,1767739854768,-150.0,0.00042685,30]
[400602477,1767739854777,-150.0,0.00042685,30]
[400602478,1767739854787,-555.93,0.00042685,30]
[400602479,1767739854796,-700.0,0.00042687,60]
[400602480,1767739854805,-3000.0,0.00042687,60]
[400602481,1767739854989,-806.56408697,0.000427,30]
[400602482,1767739854999,-1000.0,0.000427,7]
[400602483,1767739855010,-1000.0,0.00042728,14]
[400602484,1767739855019,-600.0,0.0004274,120]
[400602485,1767739855029,-250.0,0.0004274,10]
[400602486,1767739855039,-163.25248251,0.0004274,120]
[400602487,1767739855048,-507.465941,0.0004274,10]
[400602488,1767739855057,-300.0,0.00042791,2]
[400602489,1767739855066,-843.90936496,0.00042795,30]
[400602490,1767739855075,-1163.55,0.000428,14]
[400602491,1767739855084,-162.47850535,0.000428,120]
[400602492,1767739855093,-152.0,0.000428,120]
[400602493,1767739855103,-892.0,0.00042803,16]
[400602494,1767739855112,-162.0,0.00042803,16]
[400602495,1767739855120,-833.0,0.00042803,16]
[400602496,1767739855129,-833.0,0.00042804,16]
[400602497,1767739855138,-162.0,0.00042804,16]
[400602498,1767739855148,-162.0,0.00042809,16]
[400602499,1767739855157,-300.0,0.00042819,2]
[400602500,1767739855166,-833.0,0.00042821,16]
[400602501,1767739855175,-162.0,0.00042821,16]
[400602502,1767739855184,-162.0,0.00042827,16]
[400602503,1767739855193,-300.0,0.00042828,2]
[400602504,1767739855202,-300.0,0.00042829,2]
[400602505,1767739855212,-833.0,0.00042838,16]
[400602506,1767739855221,-985.0,0.00042838,16]
[400602507,1767739855230,-162.0,0.0004284,16]
[400602508,1767739855240,-162.0,0.0004284,16]
[400602509,1767739855250,-162.0,0.00042842,16]
[400602510,1767739855261,-162.0,0.00042843,16]
[400602511,1767739855272,-833.0,0.00042845,16]
[400602512,1767739855282,-833.0,0.00042847,16]
[400602513,1767739855292,-300.0,0.00042852,2]
[400602514,1767739855303,-300.0,0.00042857,2]
[400602515,1767739855314,-300.0,0.00042876,2]
[400602516,1767739855323,-300.070639,0.00042886,114]
[400602517,1767739855332,-300.0,0.0004289,2]
[400602518,1767739855342,-1000.0,0.00042894,14]
[400602519,1767739855351,-328.12,0.000429,120]
[400602520,1767739855361,-300.0,0.00042902,2]
[400602521,1767739855370,-500.0,0.00042904,100]
[400602522,1767739855379,-500.0,0.00042904,100]
[400602523,1767739855388,-500.0,0.00042904,100]
[400602524,1767739855398,-300.0,0.0004291,2]
[400602525,1767739855407,-300.0,0.00042916,2]
[400602526,1767739855418,-300.0,0.00042918,2]
[400602527,1767739855428,-300.0,0.00042923,2]
[400602528,1767739855439,-581.45000001,0.00042933,30]
[400602529,1767739855450,-1081.82651881,0.00042933,30]
[400602530,1767739855460,-439.29698496,0.00042933,30]
[400602531,1767739855469,-169.0,0.00042936,120]
[400602532,1767739855478,-300.0,0.00042939,2]
[400602533,1767739855487,-300.0,0.00042943,2]
[400602534,1767739855497,-300.0,0.00042945,2]
[400602535,1767739855506,-207.0,0.0004295,30]
[400602536,1767739855517,-843.90936496,0.00042959,30]
[400602537,1767739855527,-373.21,0.00042959,30]
[400602538,1767739855537,-800.0,0.00042961,60]
[400602539,1767739855549,-300.0,0.00042965,2]
[400602540,1767739855559,-300.0,0.00042967,2]
[400602541,1767739855569,-500.0,0.00042969,120]
[400602542,1767739855579,-300.0,0.00042981,2]
[400602543,1767739855590,-300.0,0.00042989,2]
[400602544,1767739855601,-300.0,0.00042991,2]
[400602545,1767739855610,-300.0,0.00042996,2]
[400602546,1767739855620,-300.0,0.00042998,2]
[400602547,1767739855629,-2282.7389,0.00043,120]
[400602548,1767739855638,-1456.0,0.00043,30]
[400602549,1767739855647,-300.0,0.00043,2]
[400602550,1767739855658,-1115.9,0.00043,14]
[400602551,1767739855668,-171.0,0.00043,90]
[400602552,1767739855679,-400.0,0.00043,90]
[400602553,1767739855689,-2000.0,0.00043,120]
[400602554,1767739855699,-1018.0,0.00043,30]
[400602555,1767739855711,-168.0,0.00043,90]
[400602556,1767739855721,-300.0,0.00043001,2]
[400602557,1767739855730,-300.0,0.00043005,2]
[400602558,1767739855739,-300.0,0.00043006,2]
[400602559,1767739855749,-300.0,0.00043007,2]
[400602560,1767739855758,-2362.0,0.00043008,30]
[400602561,1767739855768,-300.0,0.00043013,2]
[400602562,1767739855777,-600.0,0.00043014,120]
[400602563,1767739855786,-400.0,0.00043014,90]
[400602564,1767739855796,-300.0,0.00043015,2]
[400602565,1767739855805,-300.0,0.00043018,2]
[400602566,1767739855814,-300.0,0.0004302,2]
[400602567,1767739855825,-300.0,0.00043021,2]
[400602568,1767739855834,-300.0,0.00043034,2]
[400602569,1767739855843,-300.0,0.00043038,2]
[400602570,1767739855853,-300.0,0.00043051,2]
[400602571,1767739855864,-2483.2703733,0.00043053,30]
[400602572,1767739855873,-300.0,0.00043058,2]
[400602573,1767739855882,-300.0,0.00043059,2]
[400602574,1767739855892,-2473.97344,0.0004306,120]
[400602575,1767739855903,-2473.97344,0.0004306,120]
[400602576,1767739855914,-2473.97343,0.0004306,120]
[400602577,1767739855925,-2473.97343,0.0004306,120]
[400602578,1767739855934,-2473.97343,0.0004306,120]
[400602579,1767739855954,-300.0,0.00043063,2]
[400602580,1767739855964,-300.0,0.00043064,2]
[400602581,1767739855977,-300.0,0.00043066,2]
[400602582,1767739855986,-500.0,0.00043068,120]
[400602583,1767739855996,-500.0,0.00043068,120]
[400602584,1767739856006,-300.0,0.00043072,2]
[400602585,1767739856017,-299.73918347,0.00043073,120]
[400602586,1767739856027,-300.0,0.00043077,2]
[400602587,1767739856036,-300.0,0.00043086,2]
[400602588,1767739856045,-300.0,0.00043087,2]
[400602589,1767739856054,-300.0,0.00043092,2]
[400602590,1767739856064,-300.0,0.00043093,2]
[400602591,1767739856073,-1040.62,0.000431,30]
[400602592,1767739856083,-300.0,0.00043107,2]
[400602593,1767739856092,-300.0,0.00043108,2]
[400602594,1767739856101,-300.0,0.00043109,2]
[400602595,1767739856110,-300.0,0.00043114,2]
[400602596,1767739856120,-300.0,0.00043115,2]
[400602597,1767739856129,-1353.9,0.00043115,30]
[400602598,1767739856138,-843.90936496,0.00043123,30]
[400602599,1767739856148,-833.0,0.00043124,16]
[400602600,1767739856158,-300.0,0.00043135,2]
[400602601,1767739856167,-300.0,0.00043136,2]
[400602602,1767739856176,-162.0,0.00043136,16]
[400602603,1767739856186,-300.0,0.00043137,2]
[400602604,1767739856195,-300.0,0.0004315,2]
[400602605,1767739856204,-300.0,0.00043151,2]
[400602606,1767739856214,-2500.0,0.00043157,120]
[400602607,1767739856223,-2500.0,0.00043157,120]
[400602608,1767739856232,-2500.0,0.00043157,120]
[400602609,1767739856242,-2500.0,0.00043157,120]
[400602610,1767739856251,-833.0,0.00043165,16]
[400602611,1767739856261,-833.0,0.00043165,16]
[400602612,1767739856271,-833.0,0.00043167,16]
[400602613,1767739856280,-500.0,0.00043173,30]
[400602614,1767739856290,-300.0,0.00043174,2]
[400602615,1767739856299,-300.0,0.00043185,2]
[400602616,1767739856313,-300.0,0.00043191,2]
[400602617,1767739856323,-300.0,0.00043193,2]
[400602618,1767739856333,-500.0,0.00043199,30]
[400602619,1767739856343,-500.0,0.00043199,30]
[400602620,1767739856352,-500.0,0.00043199,30]
[400602621,1767739856362,-500.0,0.00043199,30]
[400602622,1767739856372,-500.0,0.00043199,30]
[400602623,1767739856381,-500.0,0.00043199,30]
[400602624,1767739856392,-500.0,0.00043199,30]
[400602625,1767739856401,-734.0,0.00043199,30]
[400602626,1767739856411,-152.0,0.000432,120]
[400602627,1767739856421,-10000.0,0.00043205,2]
[400602628,1767739856431,-1023.54102124,0.00043205,120]
[400602629,1767739856441,-1023.54102124,0.00043205,120]
[400602630,1767739856452,-1023.54102124,0.00043205,120]
[400602631,1767739856461,-1023.54102124,0.00043205,120]
[400602632,1767739856471,-1023.54102124,0.00043205,120]
[400602633,1767739856482,-1023.54102124,0.00043205,120]
[400602634,1767739856491,-1023.54102124,0.00043205,120]
[400602635,1767739856500,-1023.54102124,0.00043205,120]
[400602636,1767739856510,-1023.54102124,0.00043205,120]
[400602637,1767739856519,-1023.54102124,0.00043205,120]
[400602638,1767739856528,-1023.54102124,0.00043205,120]
[400602639,1767739856539,-1023.54102124,0.00043205,120]
[400602640,1767739856548,-1023.54102124,0.00043205,120]
[400602641,1767739856558,-1023.54102124,0.00043205,120]
[400602642,1767739856567,-1023.54102124,0.00043205,120]
[400602643,1767739856578,-1023.54102124,0.00043205,120]
[400602644,1767739856588,-1023.54102124,0.00043205,120]
[400602645,1767739856600,-1023.54102124,0.00043205,120]
[400602646,1767739856610,-1023.54102124,0.00043205,120]
[400602647,1767739856620,-1023.54,0.00043205,120]
[400602648,1767739856632,-2388.26238289,0.00043205,120]
[400602649,1767739856642,-2388.26238289,0.00043205,120]
[400602650,1767739856652,-2388.26238289,0.00043205,120]
[400602651,1767739856661,-2388.26238289,0.00043205,120]
[400602652,1767739856672,-2388.26238289,0.00043205,120]
[400602653,1767739856682,-2388.26238289,0.00043205,120]
[400602654,1767739856696,-2388.26238289,0.00043205,120]
[400602655,1767739856706,-2388.26238289,0.00043205,120]
[400602656,1767739856716,-2388.26238289,0.00043205,120]
[400602657,1767739856726,-2388.26238289,0.00043205,120]
[400602658,1767739856736,-2388.26238289,0.00043205,120]
[400602659,1767739856746,-2388.26238289,0.00043205,120]
[400602660,1767739856755,-2388.26238289,0.00043205,120]
[400602661,1767739856765,-2388.26238289,0.00043205,120]
[400602662,1767739856775,-2388.26238289,0.00043205,120]
[400602663,1767739856785,-2388.26238289,0.00043205,120]
[400602664,1767739856795,-2388.26238289,0.00043205,120]
[400602665,1767739856806,-2388.26238289,0.00043205,120]
[400602666,1767739856817,-2388.26238289,0.00043205,120]
[400602667,1767739856827,-13388.20199998,0.00043205,15]
[400602668,1767739856838,-4650.59598728,0.00043205,15]
[400602669,1767739856849,-300.0,0.00043214,2]
[400602670,1767739856859,-300.0,0.00043216,2]
[400602671,1767739856869,-300.0,0.00043218,2]
[400602672,1767739856883,-300.0,0.0004322,2]
[400602673,1767739856893,-300.0,0.00043222,2]
[400602674,1767739856903,-25000.0,0.00043227,15]
[400602675,1767739856912,-303.37,0.00043233,120]
[400602676,1767739856924,-700.0,0.00043235,60]
[400602677,1767739856935,-3000.0,0.00043235,60]
[400602678,1767739856945,-25000.0,0.00043236,15]
[400602679,1767739856955,-300.0,0.00043236,2]
[400602680,1767739856967,-25000.0,0.00043245,15]
[400602681,1767739856979,-300.0,0.00043247,2]
[400602682,1767739856989,-152.53735496,0.00043249,14]
[400602683,1767739857000,-150.0,0.00043251,14]
[400602684,1767739857013,-25000.0,0.00043254,15]
[400602685,1767739857024,-300.0,0.00043254,2]
[400602686,1767739857034,-300.0,0.00043257,2]
[400602687,1767739857045,-300.0,0.00043258,2]
[400602688,1767739857056,-25000.0,0.00043262,15]
[400602689,1767739857066,-150.1,0.00043269,2]
[400602690,1767739857079,-150.1,0.00043269,2]
[400602691,1767739857089,-150.1,0.00043269,2]
[400602692,1767739857099,-163.41007833,0.00043269,2]
[400602693,1767739857109,-165.71408053,0.0004327,120]
[400602694,1767739857119,-25000.0,0.00043271,15]
[400602695,1767739857129,-25000.0,0.0004328,15]
[400602696,1767739857139,-21973.59521984,0.0004328,15]
[400602697,1767739857148,-300.0,0.00043285,2]
[400602698,1767739857158,-999.0,0.00043287,120]
[400602699,1767739857168,-600.0,0.00043288,120]
[400602700,1767739857178,-500.0,0.00043288,10]
[400602701,1767739857188,-300.0,0.00043288,2]
[400602702,1767739857198,-232.48757784,0.00043298,120]
[400602703,1767739857208,-300.0,0.00043298,2]
[400602704,1767739857218,-2346.47,0.000433,120]
[400602705,1767739857228,-300.0,0.00043304,2]
[400602706,1767739857238,-247773.1925846,0.00043305,2]
[400602707,1767739857248,-363936.5429314,0.00043305,2]
[400602708,1767739857258,-17136.6912488,0.00043305,2]
[400602709,1767739857268,-300.0,0.00043306,2]
[400602710,1767739857278,-300.0,0.0004331,2]
[400602711,1767739857291,-300.0,0.00043311,2]
[400602712,1767739857301,-300.0,0.00043315,2]
[400602713,1767739857310,-300.0,0.00043323,2]
[400602714,1767739857320,-300.0,0.00043324,2]
[400602715,1767739857330,-300.0,0.00043324,2]
[400602716,1767739857340,-1498.1,0.00043336,30]
[400602717,1767739857350,-1498.1,0.00043336,30]
[400602718,1767739857359,-1498.1,0.00043336,30]
[400602719,1767739857369,-1498.1,0.00043336,30]
[400602720,1767739857378,-300.0,0.00043339,2]
[400602721,1767739857388,-300.0,0.00043349,2]
[400602722,1767739857399,-300.0,0.00043367,2]
[400602723,1767739857409,-300.0,0.00043383,2]
[400602724,1767739857419,-300.0,0.00043384,2]
[400602725,1767739857428,-5999.0,0.00043389,7]
[400602726,1767739857439,-2000.0,0.00043399,120]
[400602727,1767739857450,-15480.11203971,0.000434,30]
[400602728,1767739857460,-706.05,0.000434,120]
[400602729,1767739857473,-150.0,0.000434,27]
[400602730,1767739857483,-187.52,0.000434,48]
[400602731,1767739857494,-201.573526,0.000434,25]
[400602732,1767739857504,-300.0,0.00043404,2]
[400602733,1767739857513,-2388.26,0.00043409,120]
[400602734,1767739857523,-283.46,0.00043409,120]
[400602735,1767739857534,-269.47,0.00043409,120]
[400602736,1767739857546,-596.77294064,0.00043409,11]
[400602737,1767739857557,-929.86010204,0.00043409,120]
[400602738,1767739857567,-6331.12699299,0.00043409,15]
[400602739,1767739857578,-6223.73901718,0.0004341,2]
[400602740,1767739857589,-188.35701994,0.0004341,2]
[400602741,1767739857599,-174.15242094,0.0004341,2]
[400602742,1767739857610,-300.0,0.00043412,2]
[400602743,1767739857621,-300.0,0.00043414,2]
[400602744,1767739857631,-1000.0,0.00043415,14]
[400602745,1767739857641,-743.50770149,0.00043421,2]
[400602746,1767739857651,-386.87667747,0.00043421,2]
[400602747,1767739857660,-332.60791905,0.00043421,2]
[400602748,1767739857670,-502.0,0.00043424,17]
[400602749,1767739857680,-300.0,0.00043434,2]
[400602750,1767739857691,-300.0,0.00043441,2]
[400602751,1767739857702,-300.0,0.00043442,2]
[400602752,1767739857711,-2362.0,0.00043442,30]
[400602753,1767739857722,-300.0,0.00043451,2]
[400602754,1767739857731,-300.0,0.00043453,2]
[400602755,1767739857741,-2500.0,0.00043457,120]
[400602756,1767739857751,-2500.0,0.00043457,120]
[400602757,1767739857761,-696.14216422,0.00043457,120]
[400602758,1767739857772,-300.0,0.00043466,2]
[400602759,1767739857782,-400.0,0.0004347,3]
[400602760,1767739857793,-400.0,0.0004347,3]
[400602761,1767739857803,-704.85854174,0.0004347,3]
[400602762,1767739857813,-419.33594592,0.00043472,30]
[400602763,1767739857823,-1000.0,0.00043475,120]
[400602764,1767739857834,-300.0,0.00043476,2]
[400602765,1767739857843,-1000.0,0.0004348,120]
[400602766,1767739857853,-200.0,0.00043481,120]
[400602767,1767739857871,-1000.0,0.00043481,90]
[400602768,1767739857881,-1000.0,0.00043481,90]
[400602769,1767739857892,-1000.0,0.00043481,90]
[400602770,1767739858192,-1000.0,0.00043481,90]
[400602771,1767739858228,-1000.0,0.00043481,90]
[400602772,1767739858238,-1000.0,0.00043481,90]
[400602773,1767739858248,-1000.0,0.00043481,90]
[400602774,1767739858257,-1000.0,0.00043481,90]
[400602775,1767739858267,-1000.0,0.00043481,90]
[400602776,1767739858277,-1000.0,0.00043481,90]
[400602777,1767739858287,-2000.0,0.00043485,4]
[400602778,1767739858297,-800.0,0.00043486,16]
[400602779,1767739858306,-800.0,0.00043486,16]
[400602780,1767739858318,-800.0,0.00043486,16]
[400602781,1767739858328,-800.0,0.00043486,16]
[400602782,1767739858338,-800.0,0.00043486,16]
[400602783,1767739858348,-800.0,0.00043486,16]
[400602784,1767739858357,-800.0,0.00043486,16]
[400602785,1767739858367,-800.0,0.00043486,16]
[400602786,1767739858376,-800.0,0.00043486,16]
[400602787,1767739858386,-800.0,0.00043486,16]
[400602788,1767739858395,-800.0,0.00043486,16]
[400602789,1767739858405,-800.0,0.00043486,16]
[400602790,1767739858414,-800.0,0.00043486,16]
[400602791,1767739858424,-800.0,0.00043486,16]
[400602792,1767739858434,-800.0,0.00043486,16]
[400602793,1767739858444,-800.0,0.00043486,16]
[400602794,1767739858453,-300.0,0.00043488,2]
[400602795,1767739858463,-150.0,0.00043488,2]
[400602796,1767739858473,-1012.34745464,0.00043488,2]
[400602797,1767739858482,-150.0,0.00043488,2]
[400602798,1767739858492,-1318.60083324,0.00043488,2]
[400602799,1767739858502,-300.0,0.00043489,2]
[400602800,1767739858511,-5000.0,0.00043489,2]
[400602801,1767739858522,-1000.0,0.0004349,120]
[400602802,1767739858535,-2823.5,0.0004349,120]
[400602803,1767739858545,-2473.97344,0.0004349,120]
[400602804,1767739858555,-2473.97344,0.0004349,120]
[400602805,1767739858565,-2473.97344,0.0004349,120]
[400602806,1767739858575,-2473.97343,0.0004349,120]
[400602807,1767739858585,-2473.97343,0.0004349,120]
[400602808,1767739858595,-5000.0,0.0004349,30]
[400602809,1767739858606,-1000.0,0.0004349,2]
[400602810,1767739858616,-1000.0,0.0004349,2]
[400602811,1767739858626,-1000.0,0.0004349,2]
[400602812,1767739858636,-1000.0,0.0004349,2]
[400602813,1767739858646,-1000.0,0.0004349,2]
[400602814,1767739858656,-1000.0,0.0004349,2]
[400602815,1767739858666,-1000.0,0.0004349,2]
[400602816,1767739858676,-1000.0,0.0004349,2]
[400602817,1767739858686,-1000.0,0.0004349,2]
[400602818,1767739858696,-1000.0,0.0004349,2]
[400602819,1767739858706,-1000.0,0.0004349,2]
[400602820,1767739858717,-1000.0,0.0004349,2]
[400602821,1767739858727,-1000.0,0.0004349,2]
[400602822,1767739858736,-1000.0,0.0004349,2]
[400602823,1767739858747,-1000.0,0.0004349,2]
[400602824,1767739858756,-1000.0,0.0004349,2]
[400602825,1767739858766,-1000.0,0.0004349,2]
[400602826,1767739858777,-564.42996622,0.0004349,2]
[400602827,1767739858786,-300.0,0.00043491,2]
[400602828,1767739858796,-151.0,0.00043492,120]
[400602829,1767739858806,-461.76650521,0.00043494,2]
[400602830,1767739858816,-151.0,0.00043495,120]
[400602831,1767739858826,-151.0,0.00043495,120]
[400602832,1767739858837,-278.17483,0.00043495,120]
[400602833,1767739858847,-151.0,0.00043495,120]
[400602834,1767739858857,-151.0,0.00043495,120]
[400602835,1767739858866,-151.0,0.00043495,120]
[400602836,1767739858876,-151.0,0.00043495,120]
[400602837,1767739858886,-151.0,0.00043495,120]
[400602838,1767739858896,-157.236016,0.00043495,120]
[400602839,1767739858906,-151.0,0.00043495,120]
[400602840,1767739858919,-158.523641,0.00043495,120]
[400602841,1767739858929,-203.55208,0.00043495,120]
[400602842,1767739858939,-152.3307,0.00043495,120]
[400602843,1767739858948,-1477.119626,0.00043495,120]
[400602844,1767739858958,-1477.119619,0.00043495,120]
[400602845,1767739858972,-176.251751,0.00043495,120]
[400602846,1767739858982,-151.0,0.00043495,120]
[400602847,1767739858992,-151.0,0.00043495,120]
[400602848,1767739859002,-151.0,0.00043495,120]
[400602849,1767739859013,-151.0,0.00043495,120]
[400602850,1767739859024,-226.011011,0.00043495,120]
[400602851,1767739859034,-151.0,0.00043495,120]
[400602852,1767739859047,-151.0,0.00043495,120]
[400602853,1767739859057,-151.0,0.00043495,120]
[400602854,1767739859067,-151.0,0.00043495,120]
[400602855,1767739859076,-151.0,0.00043495,120]
[400602856,1767739859086,-151.0,0.00043495,120]
[400602857,1767739859096,-256.673018,0.00043495,120]
[400602858,1767739859105,-151.0,0.00043495,120]
[400602859,1767739859115,-154.45562,0.00043495,120]
[400602860,1767739859124,-151.0,0.00043495,120]
[400602861,1767739859134,-151.0,0.00043495,120]
[400602862,1767739859143,-151.0,0.00043495,120]
[400602863,1767739859153,-151.0,0.00043495,120]
[400602864,1767739859164,-151.0,0.00043495,120]
[400602865,1767739859175,-158.541394,0.00043495,120]
[400602866,1767739859186,-151.0,0.00043495,120]
[400602867,1767739859197,-151.0,0.00043495,120]
[400602868,1767739859207,-151.0,0.00043495,120]
[400602869,1767739859216,-151.0,0.00043495,120]
[400602870,1767739859226,-151.0,0.00043495,120]
[400602871,1767739859236,-151.0,0.00043495,120]
[400602872,1767739859246,-151.0,0.00043495,120]
[400602873,1767739859255,-151.0,0.00043495,120]
[400602874,1767739859265,-151.0,0.00043495,120]
[400602875,1767739859277,-151.0,0.00043495,120]
[400602876,1767739859288,-151.0,0.00043495,120]
[400602877,1767739859302,-151.0,0.00043495,120]
[400602878,1767739859312,-151.0,0.00043495,120]
[400602879,1767739859321,-151.0,0.00043495,120]
[400602880,1767739859330,-151.0,0.00043495,120]
[400602881,1767739859340,-151.0,0.00043495,120]
[400602882,1767739859353,-151.0,0.00043495,120]
[400602883,1767739859364,-151.0,0.00043495,120]
[400602884,1767739859374,-151.0,0.00043495,120]
[400602885,1767739859385,-151.0,0.00043495,120]
[400602886,1767739859396,-151.0,0.00043495,120]